[Event "Titled Tuesday Blitz February 07 Early 2023"]
[White "Moksh Amit Doshi"]
[Black "Csonka, Balazs"]
[WhiteFideId "25064967"]
[BlackFideId "742910"]
[WhiteElo "2401"]
[BlackElo "2496"]
[Result "1-0"]
[Round "05"]
[TimeControl "180+2"]
[Date "2023.02.07"]
[WhiteClock "0:01:04"]
[BlackClock "0:00:01"]

1. e4 {[%clk 0:02:53]}  c6 {[%clk 0:02:58]} 2. d4 {[%clk 0:02:51]}  d5 {[%clk 0:02:58]} 3. Nc3 {[%clk 0:02:47]}  dxe4 {[%clk 0:02:56]} 4. Nxe4 {[%clk 0:02:48]}  Bf5 {[%clk 0:02:56]} 5. Ng3 {[%clk 0:02:48]}  Bg6 {[%clk 0:02:56]} 6. h4 {[%clk 0:02:49]}  h6 {[%clk 0:02:56]} 7. Nf3 {[%clk 0:02:47]}  Nd7 {[%clk 0:02:56]} 8. h5 {[%clk 0:02:46]}  Bh7 {[%clk 0:02:56]} 9. Bd3 {[%clk 0:02:47]}  Bxd3 {[%clk 0:02:57]} 10. Qxd3 {[%clk 0:02:48]}  e6 {[%clk 0:02:57]} 11. Bd2 {[%clk 0:02:49]}  Ngf6 {[%clk 0:02:57]} 12. O-O-O {[%clk 0:02:49]}  Be7 {[%clk 0:02:57]} 13. Kb1 {[%clk 0:02:50]}  O-O {[%clk 0:02:57]} 14. Ne4 {[%clk 0:02:47]}  Nxe4 {[%clk 0:02:57]} 15. Qxe4 {[%clk 0:02:48]}  Nf6 {[%clk 0:02:58]} 16. Qe2 {[%clk 0:02:48]}  Qd5 {[%clk 0:02:58]} 17. Ne5 {[%clk 0:02:34]}  Qe4 {[%clk 0:02:09]} 18. Be3 {[%clk 0:02:33]}  Nd5 {[%clk 0:02:08]} 19. Rh3 {[%clk 0:02:24]}  Rad8 {[%clk 0:01:33]} 20. Rg3 {[%clk 0:02:22]}  Kh8 {[%clk 0:00:59]} 21. Rg4 {[%clk 0:01:49]}  Qf5 {[%clk 0:00:55]} 22. Rh1 {[%clk 0:01:49]}  Bf6 {[%clk 0:00:42]} 23. Nd3 {[%clk 0:01:39]}  Nxe3 {[%clk 0:00:19]} 24. fxe3 {[%clk 0:01:40]}  e5 {[%clk 0:00:18]} 25. Rf1 {[%clk 0:01:28]}  Qxh5 {[%clk 0:00:14]} 26. Rxf6 {[%clk 0:01:27]}  gxf6 {[%clk 0:00:11]} 27. Rg8+ {[%clk 0:01:27]}  Rxg8 {[%clk 0:00:10]} 28. Qxh5 {[%clk 0:01:28]}  Rxg2 {[%clk 0:00:07]} 29. b3 {[%clk 0:01:13]}  Rg6 {[%clk 0:00:03]} 30. dxe5 {[%clk 0:01:12]}  Kg7 {[%clk 0:00:04]} 31. exf6+ {[%clk 0:01:12]}  Rxf6 {[%clk 0:00:03]} 32. Nf4 {[%clk 0:01:10]}  Re8 {[%clk 0:00:02]} 33. Qg4+ {[%clk 0:01:09]}  Kf8 {[%clk 0:00:02]} 34. Kb2 {[%clk 0:01:06]}  Ke7 {[%clk 0:00:01]} 35. Nh5 {[%clk 0:01:04]}  Re6 {[%clk 0:00:01]} 36. Qb4+ {[%clk 0:01:04]} 1-0


[Site "https://www.chess.com"]

[Event "Titled Tuesday Blitz February 07 Early 2023"]
[White "Jimenez, Joaquin"]
[Black "Dong, Bao Nghia"]
[WhiteFideId "109860"]
[BlackFideId "12400343"]
[WhiteElo "2195"]
[BlackElo "2332"]
[Result "0-1"]
[Round "05"]
[TimeControl "180+2"]
[Date "2023.02.07"]
[WhiteClock "0:00:04"]
[BlackClock "0:00:51"]

1. c4 {[%clk 0:03:00]}  e6 {[%clk 0:02:37]} 2. Nf3 {[%clk 0:02:59]}  d5 {[%clk 0:02:38]} 3. g3 {[%clk 0:02:57]}  g6 {[%clk 0:02:38]} 4. Bg2 {[%clk 0:02:56]}  Bg7 {[%clk 0:02:37]} 5. O-O {[%clk 0:02:56]}  Ne7 {[%clk 0:02:36]} 6. d4 {[%clk 0:02:56]}  O-O {[%clk 0:02:34]} 7. Nc3 {[%clk 0:02:56]}  Nbc6 {[%clk 0:02:34]} 8. Bg5 {[%clk 0:02:48]}  f6 {[%clk 0:02:30]} 9. cxd5 {[%clk 0:02:46]}  exd5 {[%clk 0:02:24]} 10. Bf4 {[%clk 0:02:39]}  g5 {[%clk 0:02:24]} 11. Bc1 {[%clk 0:02:35]}  Nf5 {[%clk 0:02:24]} 12. e3 {[%clk 0:02:34]}  Nce7 {[%clk 0:02:24]} 13. b3 {[%clk 0:02:30]}  c6 {[%clk 0:02:24]} 14. Ba3 {[%clk 0:02:29]}  Re8 {[%clk 0:02:24]} 15. Na4 {[%clk 0:02:28]}  Nd6 {[%clk 0:02:24]} 16. Rc1 {[%clk 0:02:18]}  Nef5 {[%clk 0:02:23]} 17. Bb2 {[%clk 0:02:04]}  h5 {[%clk 0:02:21]} 18. Nc5 {[%clk 0:02:03]}  g4 {[%clk 0:02:21]} 19. Nd2 {[%clk 0:02:02]}  Bh6 {[%clk 0:02:21]} 20. Nd3 {[%clk 0:01:48]}  Be6 {[%clk 0:02:03]} 21. Ba3 {[%clk 0:01:46]}  Bf7 {[%clk 0:02:03]} 22. Bxd6 {[%clk 0:01:44]}  Qxd6 {[%clk 0:02:02]} 23. Nc5 {[%clk 0:01:44]}  Re7 {[%clk 0:02:01]} 24. Qc2 {[%clk 0:01:38]}  Bg6 {[%clk 0:02:00]} 25. Qc3 {[%clk 0:01:35]}  h4 {[%clk 0:01:59]} 26. e4 {[%clk 0:01:34]}  Ng7 {[%clk 0:01:28]} 27. Rfe1 {[%clk 0:01:21]}  Rae8 {[%clk 0:01:28]} 28. e5 {[%clk 0:01:14]}  fxe5 {[%clk 0:01:26]} 29. dxe5 {[%clk 0:01:14]}  Rxe5 {[%clk 0:01:26]} 30. Rxe5 {[%clk 0:01:13]}  Qxe5 {[%clk 0:01:26]} 31. Qxe5 {[%clk 0:00:47]}  Rxe5 {[%clk 0:01:26]} 32. f4 {[%clk 0:00:47]}  Re2 {[%clk 0:01:24]} 33. Rd1 {[%clk 0:00:44]}  Bc2 {[%clk 0:01:23]} 34. Bf1 {[%clk 0:00:32]}  Bxd1 {[%clk 0:01:23]} 35. Bxe2 {[%clk 0:00:32]}  Bxe2 {[%clk 0:01:24]} 36. Nxb7 {[%clk 0:00:32]}  hxg3 {[%clk 0:01:24]} 37. hxg3 {[%clk 0:00:32]}  Nf5 {[%clk 0:01:24]} 38. Kf2 {[%clk 0:00:32]}  Bd1 {[%clk 0:01:23]} 39. Nd8 {[%clk 0:00:31]}  Ne7 {[%clk 0:01:19]} 40. Nf1 {[%clk 0:00:28]}  Bf3 {[%clk 0:01:19]} 41. Nh2 {[%clk 0:00:24]}  Bd1 {[%clk 0:01:14]} 42. Ke1 {[%clk 0:00:23]}  Bf3 {[%clk 0:01:11]} 43. Kf2 {[%clk 0:00:22]}  Be4 {[%clk 0:01:03]} 44. Nxg4 {[%clk 0:00:22]}  Bg7 {[%clk 0:01:03]} 45. Ne6 {[%clk 0:00:20]}  Bc3 {[%clk 0:01:01]} 46. Ne3 {[%clk 0:00:16]}  d4 {[%clk 0:00:59]} 47. Nc4 {[%clk 0:00:16]}  Bd5 {[%clk 0:00:57]} 48. Ng5 {[%clk 0:00:08]}  Nf5 {[%clk 0:00:57]} 49. g4 {[%clk 0:00:05]}  Bxc4 {[%clk 0:00:57]} 50. gxf5 {[%clk 0:00:05]}  Bd3 {[%clk 0:00:56]} 51. Ne6 {[%clk 0:00:05]}  Bxf5 {[%clk 0:00:55]} 52. Nd8 {[%clk 0:00:05]}  Be4 {[%clk 0:00:53]} 53. Ne6 {[%clk 0:00:04]}  d3 {[%clk 0:00:53]} 54. Ng5 {[%clk 0:00:04]}  d2 {[%clk 0:00:51]} 55. Ke2 {[%clk 0:00:04]}  Bc2 {[%clk 0:00:51]} 0-1


[Site "https://www.chess.com"]

[Event "Titled Tuesday Blitz February 07 Early 2023"]
[White "EREBUNI91"]
[Black "Sowul, Bartosz"]
[BlackFideId "1137590"]
[WhiteElo "2666"]
[BlackElo "2269"]
[Result "1-0"]
[Round "05"]
[TimeControl "180+2"]
[Date "2023.02.07"]
[WhiteClock "0:00:42"]
[BlackClock "0:00:25"]

1. e3 {[%clk 0:02:38]}  c5 {[%clk 0:02:57]} 2. b3 {[%clk 0:02:38]}  Nf6 {[%clk 0:02:52]} 3. Bb2 {[%clk 0:02:38]}  g6 {[%clk 0:02:52]} 4. Nf3 {[%clk 0:02:39]}  Bg7 {[%clk 0:02:53]} 5. Be2 {[%clk 0:02:40]}  O-O {[%clk 0:02:53]} 6. O-O {[%clk 0:02:40]}  d5 {[%clk 0:02:52]} 7. d4 {[%clk 0:02:40]}  cxd4 {[%clk 0:02:49]} 8. Nxd4 {[%clk 0:02:41]}  Nc6 {[%clk 0:02:49]} 9. Nd2 {[%clk 0:02:41]}  Nxd4 {[%clk 0:02:44]} 10. Bxd4 {[%clk 0:02:41]}  Qc7 {[%clk 0:02:42]} 11. c4 {[%clk 0:02:39]}  e5 {[%clk 0:02:40]} 12. Bb2 {[%clk 0:02:38]}  Re8 {[%clk 0:02:37]} 13. cxd5 {[%clk 0:02:33]}  Nxd5 {[%clk 0:02:36]} 14. Nc4 {[%clk 0:02:34]}  Be6 {[%clk 0:02:27]} 15. Rc1 {[%clk 0:02:30]}  Qb8 {[%clk 0:02:17]} 16. Ba3 {[%clk 0:02:26]}  Rd8 {[%clk 0:02:05]} 17. Bd6 {[%clk 0:02:16]}  Nc7 {[%clk 0:01:52]} 18. Qc2 {[%clk 0:01:40]}  b5 {[%clk 0:01:17]} 19. Na5 {[%clk 0:01:18]}  Rxd6 {[%clk 0:01:15]} 20. Qxc7 {[%clk 0:01:18]}  Qxc7 {[%clk 0:01:16]} 21. Rxc7 {[%clk 0:01:19]}  Rd2 {[%clk 0:01:07]} 22. Bxb5 {[%clk 0:01:17]}  Rxa2 {[%clk 0:01:07]} 23. b4 {[%clk 0:01:05]}  Rb8 {[%clk 0:00:57]} 24. Bc4 {[%clk 0:00:46]}  Rc2 {[%clk 0:00:43]} 25. Rc6 {[%clk 0:00:46]}  Rxb4 {[%clk 0:00:39]} 26. Bxe6 {[%clk 0:00:45]}  Rxc6 {[%clk 0:00:33]} 27. Nxc6 {[%clk 0:00:45]}  Rb6 {[%clk 0:00:32]} 28. Bd5 {[%clk 0:00:45]}  a5 {[%clk 0:00:28]} 29. e4 {[%clk 0:00:43]}  a4 {[%clk 0:00:27]} 30. Ra1 {[%clk 0:00:42]}  a3 {[%clk 0:00:25]} 31. g3 {[%clk 0:00:42]} 1-0


[Site "https://www.chess.com"]

[Event "Titled Tuesday Blitz February 07 Early 2023"]
[White "Tobares, Leandro"]
[Black "Iskusnyh, Sergei"]
[WhiteFideId "106402"]
[BlackFideId "4120027"]
[WhiteElo "2189"]
[BlackElo "2440"]
[Result "0-1"]
[Round "05"]
[TimeControl "180+2"]
[Date "2023.02.07"]
[WhiteClock "0:01:18"]
[BlackClock "0:01:33"]

1. c4 {[%clk 0:02:58]}  e5 {[%clk 0:02:58]} 2. Nc3 {[%clk 0:02:56]}  Bb4 {[%clk 0:02:56]} 3. Nd5 {[%clk 0:02:53]}  Be7 {[%clk 0:02:55]} 4. d4 {[%clk 0:02:52]}  exd4 {[%clk 0:02:52]} 5. Qxd4 {[%clk 0:02:51]}  Nf6 {[%clk 0:02:51]} 6. Nxe7 {[%clk 0:02:50]}  Qxe7 {[%clk 0:02:52]} 7. Bg5 {[%clk 0:02:46]}  Nc6 {[%clk 0:02:48]} 8. Bxf6 {[%clk 0:02:38]}  Nxd4 {[%clk 0:02:47]} 9. Bxe7 {[%clk 0:02:38]}  Kxe7 {[%clk 0:02:48]} 10. O-O-O {[%clk 0:02:36]}  Ne6 {[%clk 0:02:42]} 11. e3 {[%clk 0:02:32]}  a5 {[%clk 0:02:31]} 12. Nf3 {[%clk 0:02:31]}  Nc5 {[%clk 0:02:29]} 13. Bd3 {[%clk 0:02:16]}  d6 {[%clk 0:02:25]} 14. Bc2 {[%clk 0:02:14]}  Be6 {[%clk 0:02:11]} 15. b3 {[%clk 0:02:11]}  Bg4 {[%clk 0:02:09]} 16. h3 {[%clk 0:02:10]}  Bxf3 {[%clk 0:02:08]} 17. gxf3 {[%clk 0:02:10]}  g6 {[%clk 0:02:04]} 18. h4 {[%clk 0:02:09]}  h5 {[%clk 0:02:03]} 19. f4 {[%clk 0:02:07]}  Rhb8 {[%clk 0:02:00]} 20. f5 {[%clk 0:02:03]}  gxf5 {[%clk 0:01:57]} 21. Bxf5 {[%clk 0:02:01]}  b5 {[%clk 0:01:58]} 22. cxb5 {[%clk 0:01:59]}  Rxb5 {[%clk 0:01:57]} 23. Bc2 {[%clk 0:01:55]}  a4 {[%clk 0:01:54]} 24. Kb2 {[%clk 0:01:49]}  axb3 {[%clk 0:01:50]} 25. axb3 {[%clk 0:01:47]}  Na4+ {[%clk 0:01:47]} 26. Kc1 {[%clk 0:01:41]}  Nc3 {[%clk 0:01:46]} 27. Rde1 {[%clk 0:01:38]}  Rc5 {[%clk 0:01:40]} 28. Kd2 {[%clk 0:01:31]}  Ra2 {[%clk 0:01:37]} 29. Ra1 {[%clk 0:01:26]}  Ne4+ {[%clk 0:01:33]} 30. Kd3 {[%clk 0:01:18]}  Nxf2+ {[%clk 0:01:33]} 0-1


[Site "https://www.chess.com"]

[Event "Titled Tuesday Blitz February 07 Early 2023"]
[White "Shimanov, Aleksandr"]
[Black "Kochetov, Andrey"]
[WhiteFideId "4198603"]
[BlackFideId "24130532"]
[WhiteElo "2581"]
[BlackElo "2165"]
[Result "1-0"]
[Round "05"]
[TimeControl "180+2"]
[Date "2023.02.07"]
[WhiteClock "0:00:34"]
[BlackClock "0:00:03"]

1. c4 {[%clk 0:02:52]}  Nf6 {[%clk 0:02:58]} 2. g3 {[%clk 0:02:47]}  e6 {[%clk 0:02:51]} 3. Bg2 {[%clk 0:02:46]}  d5 {[%clk 0:02:52]} 4. Nf3 {[%clk 0:02:44]}  Be7 {[%clk 0:02:47]} 5. O-O {[%clk 0:02:42]}  dxc4 {[%clk 0:02:47]} 6. Qa4+ {[%clk 0:02:37]}  Nbd7 {[%clk 0:02:43]} 7. Qxc4 {[%clk 0:02:36]}  a6 {[%clk 0:02:44]} 8. Qc2 {[%clk 0:02:27]}  O-O {[%clk 0:02:40]} 9. d4 {[%clk 0:02:26]}  b5 {[%clk 0:02:36]} 10. Ne5 {[%clk 0:02:14]}  Nd5 {[%clk 0:02:13]} 11. Nc6 {[%clk 0:02:08]}  Qe8 {[%clk 0:02:10]} 12. Nc3 {[%clk 0:01:52]}  N7f6 {[%clk 0:01:52]} 13. Nxd5 {[%clk 0:01:47]}  exd5 {[%clk 0:01:48]} 14. Bg5 {[%clk 0:01:38]}  Be6 {[%clk 0:01:21]} 15. Rac1 {[%clk 0:01:28]}  h6 {[%clk 0:01:12]} 16. Nxe7+ {[%clk 0:01:25]}  Qxe7 {[%clk 0:01:12]} 17. Bxf6 {[%clk 0:01:24]}  Qxf6 {[%clk 0:01:12]} 18. e3 {[%clk 0:01:25]}  Rac8 {[%clk 0:00:47]} 19. Qc6 {[%clk 0:01:24]}  Rfd8 {[%clk 0:00:41]} 20. Qxa6 {[%clk 0:01:22]}  Ra8 {[%clk 0:00:41]} 21. Qxb5 {[%clk 0:01:20]}  Rxa2 {[%clk 0:00:41]} 22. Rxc7 {[%clk 0:01:20]}  h5 {[%clk 0:00:36]} 23. h4 {[%clk 0:01:14]}  g5 {[%clk 0:00:33]} 24. hxg5 {[%clk 0:01:14]}  Qxg5 {[%clk 0:00:32]} 25. Rb7 {[%clk 0:01:05]}  Kg7 {[%clk 0:00:20]} 26. Rb8 {[%clk 0:01:03]}  Ra8 {[%clk 0:00:12]} 27. Rxd8 {[%clk 0:01:01]}  Rxd8 {[%clk 0:00:12]} 28. Qe2 {[%clk 0:00:59]}  Rh8 {[%clk 0:00:09]} 29. Qf3 {[%clk 0:00:57]}  Rb8 {[%clk 0:00:09]} 30. Qe2 {[%clk 0:00:51]}  h4 {[%clk 0:00:09]} 31. gxh4 {[%clk 0:00:51]}  Qxh4 {[%clk 0:00:09]} 32. Rd1 {[%clk 0:00:46]}  Bg4 {[%clk 0:00:06]} 33. f3 {[%clk 0:00:45]}  Bf5 {[%clk 0:00:04]} 34. Rd2 {[%clk 0:00:44]}  Rh8 {[%clk 0:00:04]} 35. Qf2 {[%clk 0:00:43]}  Qh2+ {[%clk 0:00:05]} 36. Kf1 {[%clk 0:00:44]}  Kf6 {[%clk 0:00:04]} 37. e4 {[%clk 0:00:43]}  Bg6 {[%clk 0:00:03]} 38. Qe3 {[%clk 0:00:41]}  Ra8 {[%clk 0:00:03]} 39. Rd1 {[%clk 0:00:34]} 1-0


[Site "https://www.chess.com"]

[Event "Titled Tuesday Blitz February 07 Early 2023"]
[White "Toncheva, Nadya"]
[Black "Kozak, Adam"]
[WhiteFideId "2924056"]
[BlackFideId "753246"]
[WhiteElo "2295"]
[BlackElo "2572"]
[Result "0-1"]
[Round "05"]
[TimeControl "180+2"]
[Date "2023.02.07"]
[WhiteClock "0:00:06"]
[BlackClock "0:01:37"]

1. d4 {[%clk 0:03:00]}  g6 {[%clk 0:02:59]} 2. c4 {[%clk 0:02:59]}  Nf6 {[%clk 0:02:59]} 3. Nc3 {[%clk 0:03:00]}  d5 {[%clk 0:02:59]} 4. cxd5 {[%clk 0:03:00]}  Nxd5 {[%clk 0:02:59]} 5. e4 {[%clk 0:03:00]}  Nxc3 {[%clk 0:02:53]} 6. bxc3 {[%clk 0:03:01]}  Bg7 {[%clk 0:02:54]} 7. Be3 {[%clk 0:03:01]}  c5 {[%clk 0:02:54]} 8. Qd2 {[%clk 0:03:00]}  O-O {[%clk 0:02:54]} 9. Rc1 {[%clk 0:02:57]}  Qc7 {[%clk 0:02:48]} 10. Nf3 {[%clk 0:02:54]}  Rd8 {[%clk 0:02:48]} 11. d5 {[%clk 0:02:54]}  Bg4 {[%clk 0:02:47]} 12. Be2 {[%clk 0:02:51]}  c4 {[%clk 0:02:45]} 13. O-O {[%clk 0:02:49]}  Bxf3 {[%clk 0:02:42]} 14. Bxf3 {[%clk 0:02:48]}  Nd7 {[%clk 0:02:42]} 15. g3 {[%clk 0:02:45]}  Nc5 {[%clk 0:02:40]} 16. Bd4 {[%clk 0:02:34]}  Nd3 {[%clk 0:02:36]} 17. Bxg7 {[%clk 0:02:12]}  Kxg7 {[%clk 0:02:37]} 18. Rb1 {[%clk 0:02:11]}  e6 {[%clk 0:02:24]} 19. Qe3 {[%clk 0:02:04]}  b6 {[%clk 0:02:13]} 20. Rfd1 {[%clk 0:01:48]}  Qc5 {[%clk 0:02:11]} 21. Qxc5 {[%clk 0:01:38]}  Nxc5 {[%clk 0:02:12]} 22. Rb4 {[%clk 0:01:38]}  Nd3 {[%clk 0:02:11]} 23. Rbb1 {[%clk 0:01:21]}  exd5 {[%clk 0:02:08]} 24. exd5 {[%clk 0:01:21]}  Rac8 {[%clk 0:02:08]} 25. Be4 {[%clk 0:01:18]}  Nc5 {[%clk 0:02:08]} 26. Bg2 {[%clk 0:01:17]}  Na4 {[%clk 0:02:00]} 27. Rbc1 {[%clk 0:01:14]}  Rd6 {[%clk 0:02:00]} 28. Rd4 {[%clk 0:01:12]}  b5 {[%clk 0:02:00]} 29. Rd2 {[%clk 0:01:04]}  Re8 {[%clk 0:01:58]} 30. Kf1 {[%clk 0:01:03]}  Kf8 {[%clk 0:01:51]} 31. Re2 {[%clk 0:01:00]}  Red8 {[%clk 0:01:51]} 32. Re3 {[%clk 0:00:56]}  Nc5 {[%clk 0:01:51]} 33. Rb1 {[%clk 0:00:55]}  Rb8 {[%clk 0:01:49]} 34. Ke2 {[%clk 0:00:51]}  Ra6 {[%clk 0:01:48]} 35. Rb2 {[%clk 0:00:49]}  Ra3 {[%clk 0:01:46]} 36. Rc2 {[%clk 0:00:38]}  Rd8 {[%clk 0:01:44]} 37. Rb2 {[%clk 0:00:37]}  Na4 {[%clk 0:01:43]} 38. Rc2 {[%clk 0:00:37]}  Nb6 {[%clk 0:01:39]} 39. Rb2 {[%clk 0:00:34]}  Nxd5 {[%clk 0:01:37]} 40. Rd2 {[%clk 0:00:18]}  Nxe3 {[%clk 0:01:36]} 41. Rxd8+ {[%clk 0:00:18]}  Ke7 {[%clk 0:01:36]} 42. Rb8 {[%clk 0:00:06]}  Nxg2 {[%clk 0:01:36]} 43. Kf1 {[%clk 0:00:07]}  a6 {[%clk 0:01:35]} 44. Kxg2 {[%clk 0:00:07]}  Rxc3 {[%clk 0:01:35]} 45. Rb7+ {[%clk 0:00:06]}  Kf8 {[%clk 0:01:35]} 46. a4 {[%clk 0:00:04]}  Rb3 {[%clk 0:01:35]} 47. a5 {[%clk 0:00:03]}  c3 {[%clk 0:01:35]} 48. Rb6 {[%clk 0:00:03]}  c2 {[%clk 0:01:35]} 49. Rc6 {[%clk 0:00:04]}  Rb2 {[%clk 0:01:35]} 50. Kf3 {[%clk 0:00:04]}  b4 {[%clk 0:01:36]} 51. Ke3 {[%clk 0:00:05]}  b3 {[%clk 0:01:36]} 52. Kd2 {[%clk 0:00:06]}  Rb1 {[%clk 0:01:37]} 0-1


[Site "https://www.chess.com"]

[Event "Titled Tuesday Blitz February 07 Early 2023"]
[White "Harsha Bharathakoti"]
[Black "Fiorito, Francisco"]
[WhiteFideId "5078776"]
[BlackFideId "180165"]
[WhiteElo "2602"]
[BlackElo "2305"]
[Result "1-0"]
[Round "05"]
[TimeControl "180+2"]
[Date "2023.02.07"]
[WhiteClock "0:01:40"]
[BlackClock "0:00:13"]

1. e4 {[%clk 0:03:00]}  c5 {[%clk 0:02:59]} 2. Nc3 {[%clk 0:02:57]}  Nc6 {[%clk 0:02:59]} 3. Bb5 {[%clk 0:02:57]}  Nd4 {[%clk 0:02:58]} 4. Nf3 {[%clk 0:02:58]}  g6 {[%clk 0:02:57]} 5. Bc4 {[%clk 0:02:47]}  e6 {[%clk 0:02:45]} 6. Nxd4 {[%clk 0:02:45]}  cxd4 {[%clk 0:02:45]} 7. Ne2 {[%clk 0:02:46]}  Bg7 {[%clk 0:02:44]} 8. c3 {[%clk 0:02:45]}  dxc3 {[%clk 0:02:43]} 9. dxc3 {[%clk 0:02:43]}  Ne7 {[%clk 0:02:42]} 10. O-O {[%clk 0:02:44]}  O-O {[%clk 0:02:41]} 11. Qd6 {[%clk 0:02:42]}  Nc6 {[%clk 0:02:40]} 12. Bf4 {[%clk 0:02:41]}  Re8 {[%clk 0:02:37]} 13. Bb3 {[%clk 0:02:27]}  Bf8 {[%clk 0:02:24]} 14. Qd2 {[%clk 0:02:26]}  d5 {[%clk 0:01:18]} 15. exd5 {[%clk 0:02:27]}  exd5 {[%clk 0:01:19]} 16. Rad1 {[%clk 0:02:23]}  Be6 {[%clk 0:01:19]} 17. Rfe1 {[%clk 0:02:19]}  Qb6 {[%clk 0:01:03]} 18. Be3 {[%clk 0:02:16]}  Qb5 {[%clk 0:01:00]} 19. Nf4 {[%clk 0:02:02]}  Rad8 {[%clk 0:00:45]} 20. Nxd5 {[%clk 0:02:00]}  Bg7 {[%clk 0:00:19]} 21. c4 {[%clk 0:01:53]}  Qa5 {[%clk 0:00:17]} 22. Qxa5 {[%clk 0:01:44]}  Nxa5 {[%clk 0:00:17]} 23. Bxa7 {[%clk 0:01:45]}  Nxb3 {[%clk 0:00:16]} 24. axb3 {[%clk 0:01:45]}  Bxb2 {[%clk 0:00:17]} 25. Nc7 {[%clk 0:01:42]}  Rxd1 {[%clk 0:00:16]} 26. Rxd1 {[%clk 0:01:43]}  Bg4 {[%clk 0:00:16]} 27. f3 {[%clk 0:01:42]}  Bf5 {[%clk 0:00:16]} 28. Nxe8 {[%clk 0:01:42]}  Bc2 {[%clk 0:00:13]} 29. Rd2 {[%clk 0:01:40]} 1-0


[Site "https://www.chess.com"]

[Event "Titled Tuesday Blitz February 07 Early 2023"]
[White "Maximov, Dmitry"]
[Black "Buksa, Nataliya"]
[WhiteFideId "14105659"]
[BlackFideId "14123622"]
[WhiteElo "2497"]
[BlackElo "2406"]
[Result "1-0"]
[Round "05"]
[TimeControl "180+2"]
[Date "2023.02.07"]
[WhiteClock "0:00:09"]
[BlackClock "0:00:04"]

1. e4 {[%clk 0:03:00]}  c5 {[%clk 0:02:59]} 2. Nf3 {[%clk 0:03:01]}  Nc6 {[%clk 0:02:59]} 3. Bb5 {[%clk 0:03:00]}  g6 {[%clk 0:02:58]} 4. Bxc6 {[%clk 0:03:00]}  dxc6 {[%clk 0:02:57]} 5. O-O {[%clk 0:03:00]}  Bg7 {[%clk 0:02:56]} 6. Re1 {[%clk 0:03:00]}  e5 {[%clk 0:02:56]} 7. a4 {[%clk 0:02:59]}  Qe7 {[%clk 0:02:54]} 8. h3 {[%clk 0:02:57]}  Nf6 {[%clk 0:02:55]} 9. Na3 {[%clk 0:02:53]}  Nd7 {[%clk 0:02:54]} 10. Nc4 {[%clk 0:02:53]}  O-O {[%clk 0:02:54]} 11. d3 {[%clk 0:02:50]}  Re8 {[%clk 0:02:54]} 12. Bg5 {[%clk 0:02:48]}  f6 {[%clk 0:02:54]} 13. Bd2 {[%clk 0:02:46]}  Nf8 {[%clk 0:02:54]} 14. Rb1 {[%clk 0:02:41]}  Be6 {[%clk 0:02:39]} 15. Ne3 {[%clk 0:02:30]}  Bf7 {[%clk 0:02:39]} 16. b4 {[%clk 0:02:29]}  Ne6 {[%clk 0:02:34]} 17. b5 {[%clk 0:02:28]}  cxb5 {[%clk 0:02:33]} 18. Nd5 {[%clk 0:02:24]}  Qd7 {[%clk 0:02:33]} 19. axb5 {[%clk 0:02:23]}  Nd4 {[%clk 0:02:32]} 20. c4 {[%clk 0:02:12]}  Bxd5 {[%clk 0:02:09]} 21. exd5 {[%clk 0:02:08]}  f5 {[%clk 0:02:09]} 22. Nxd4 {[%clk 0:02:03]}  cxd4 {[%clk 0:02:07]} 23. Qf3 {[%clk 0:01:56]}  b6 {[%clk 0:02:07]} 24. Re2 {[%clk 0:01:50]}  a5 {[%clk 0:01:59]} 25. bxa6 {[%clk 0:01:50]}  Rxa6 {[%clk 0:02:00]} 26. Bb4 {[%clk 0:01:44]}  h5 {[%clk 0:00:53]} 27. d6 {[%clk 0:01:42]}  Kh7 {[%clk 0:00:52]} 28. Qd5 {[%clk 0:01:42]}  Ra4 {[%clk 0:00:39]} 29. c5 {[%clk 0:01:38]}  bxc5 {[%clk 0:00:35]} 30. Bxc5 {[%clk 0:01:38]}  Ra5 {[%clk 0:00:35]} 31. Reb2 {[%clk 0:01:21]}  Rc8 {[%clk 0:00:16]} 32. Rb7 {[%clk 0:01:09]}  Raxc5 {[%clk 0:00:16]} 33. Rxd7 {[%clk 0:00:20]}  Rxd5 {[%clk 0:00:16]} 34. Rbb7 {[%clk 0:00:21]}  Rg8 {[%clk 0:00:17]} 35. Rb6 {[%clk 0:00:20]}  Kh6 {[%clk 0:00:17]} 36. Rc7 {[%clk 0:00:19]}  Rd8 {[%clk 0:00:16]} 37. Rbb7 {[%clk 0:00:16]}  Bf6 {[%clk 0:00:09]} 38. Rh7+ {[%clk 0:00:15]}  Kg5 {[%clk 0:00:09]} 39. d7 {[%clk 0:00:14]}  h4 {[%clk 0:00:09]} 40. f3 {[%clk 0:00:14]}  Kf4 {[%clk 0:00:08]} 41. Kf2 {[%clk 0:00:14]}  Rc5 {[%clk 0:00:05]} 42. Rb6 {[%clk 0:00:14]}  Bg5 {[%clk 0:00:05]} 43. Rxg6 {[%clk 0:00:13]}  Rc2+ {[%clk 0:00:05]} 44. Kg1 {[%clk 0:00:13]}  Ra8 {[%clk 0:00:03]} 45. Kh2 {[%clk 0:00:11]}  Raa2 {[%clk 0:00:03]} 46. Rxg5 {[%clk 0:00:12]}  Kxg5 {[%clk 0:00:02]} 47. d8=Q+ {[%clk 0:00:12]}  Kf4 {[%clk 0:00:03]} 48. Qxh4+ {[%clk 0:00:12]}  Ke3 {[%clk 0:00:03]} 49. Qg5+ {[%clk 0:00:13]}  f4 {[%clk 0:00:03]} 50. Qxe5+ {[%clk 0:00:13]}  Kxd3 {[%clk 0:00:03]} 51. Rg7 {[%clk 0:00:12]}  Re2 {[%clk 0:00:03]} 52. Qb5+ {[%clk 0:00:12]}  Ke3 {[%clk 0:00:03]} 53. Qb3+ {[%clk 0:00:12]}  Kf2 {[%clk 0:00:03]} 54. Qd3 {[%clk 0:00:10]}  Re3 {[%clk 0:00:02]} 55. Qxd4 {[%clk 0:00:10]}  Kf1 {[%clk 0:00:03]} 56. Qd1+ {[%clk 0:00:10]}  Kf2 {[%clk 0:00:03]} 57. Rd7 {[%clk 0:00:09]}  Re1 {[%clk 0:00:02]} 58. Rd2+ {[%clk 0:00:09]}  Rxd2 {[%clk 0:00:02]} 59. Qxd2+ {[%clk 0:00:10]}  Kf1 {[%clk 0:00:03]} 60. Qxf4 {[%clk 0:00:09]}  Re2 {[%clk 0:00:03]} 61. Qc4 {[%clk 0:00:08]}  Kf2 {[%clk 0:00:04]} 62. Qd4+ {[%clk 0:00:08]}  Kf1 {[%clk 0:00:04]} 63. Qg4 {[%clk 0:00:09]}  Rf2 {[%clk 0:00:04]} 64. f4 {[%clk 0:00:09]} 1-0


[Site "https://www.chess.com"]